bitfinex/quotes_SOLUSD_20241220
["timestamp","ask_amount","ask_price","bid_price","bid_amount"]
[1734706359524,0.6733706,187.64,187.45,6.1507]
[1734706359728,0.6733706,187.64,187.46,13.3361]
[1734706360154,0.6733706,187.64,187.47,0.12549]
[1734706360451,0.12549,187.58,187.38,13.3415]
[1734706360657,6.16605542,187.57,187.38,13.3415]
[1734706360826,20.0,187.54,187.38,13.3415]
[1734706361141,20.0,187.54,187.39,0.80015217]
[1734706361339,20.0,187.55,187.39,0.80015217]
[1734706362218,20.0,187.55,187.4,13.3404]
[1734706362416,20.0,187.55,187.37,6.4817]
[1734706363149,20.0,187.53,187.33,1.6108]
[1734706363339,20.0,187.51,187.33,1.6108]
[1734706363828,20.0,187.51,187.34,13.3447]
[1734706366048,20.0,187.51,187.35,0.12549]
[1734706366245,33.3447,187.51,187.35,0.12549]
[1734706366450,20.0,187.51,187.37,0.12549]
[1734706366957,13.3432,187.53,187.37,0.12549]
[1734706367629,6.27755776,187.6,187.39,0.12549]
[1734706367949,13.3432,187.59,187.38,0.8000475]
[1734706368151,13.3432,187.59,187.39,0.12549]
[1734706368352,13.3432,187.59,187.39,13.46649]
[1734706368532,39.11431318,187.59,187.39,13.46649]
[1734706368857,0.12549,187.57,187.37,0.12549]
[1734706369065,6.27755776,187.58,187.37,0.12549]
[1734706369354,6.16605542,187.59,187.4,0.12549]
[1734706369931,6.16605542,187.59,187.36,14.14323519]
[1734706369932,0.12549,187.58,187.36,14.14323519]
[1734706370723,20.0,187.56,187.36,14.14323519]
[1734706371258,20.0,187.56,187.37,0.12549]
[1734706371850,20.0,187.56,187.39,0.12549]
[1734706372639,20.0,187.52,187.33,28.3009]
[1734706372973,20.0,187.52,187.34,0.12549]
[1734706373138,20.0,187.52,187.34,0.92574438]
[1734706374273,20.0,187.52,187.36,0.12549]
[1734706374437,20.0,187.52,187.35,13.344]
[1734706375351,20.0,187.52,187.36,0.92580019]
[1734706375559,20.0,187.52,187.38,0.12549]
[1734706375866,6.27755776,187.59,187.4,0.12549]
[1734706376040,6.3328,187.6,187.4,0.92547385]
[1734706376240,19.6753,187.6,187.4,0.92547385]
[1734706376680,6.16605542,187.59,187.4,0.92547385]
[1734706378274,6.16605542,187.59,187.42,0.12549]
[1734706378680,20.0,187.56,187.42,0.12549]
[1734706379183,20.0,187.56,187.39,6.2212]
[1734706379352,20.0,187.52,187.39,6.2212]
[1734706379753,20.0,187.52,187.4,0.12549]
[1734706379969,20.0,187.56,187.4,13.46589]
[1734706380155,20.0,187.56,187.4,14.26599002]
[1734706381043,6.16605542,187.59,187.4,40.94679002]
[1734706381242,6.3328,187.6,187.44,0.12549]
[1734706381477,6.3328,187.6,187.44,0.92530456]
[1734706381770,6.3328,187.6,187.44,2.56180456]
[1734706382140,21.369542,187.62,187.44,22.56180456]
[1734706382347,6.83942602,187.64,187.44,22.56180456]
[1734706382982,13.11698378,187.64,187.45,13.3368]
[1734706383161,20.0,187.61,187.46,0.12549]
[1734706384069,20.0,187.61,187.44,1.6365]
[1734706384070,32.44361318,187.61,187.44,1.6365]
[1734706384374,20.0,187.57,187.43,0.12549]
[1734706385078,20.0,187.61,187.45,0.12549]
[1734706385377,13.11698378,187.64,187.45,0.92533755]
[1734706385874,13.11698378,187.64,187.48,0.12549]
[1734706386082,6.95092836,187.64,187.48,0.12549]
[1734706386645,0.6733706,187.64,187.5,0.12549]
[1734706387374,20.0,187.63,187.51,6.656]
[1734706387948,26.16605542,187.63,187.46,19.9921]
[1734706388179,20.0,187.61,187.46,19.9921]
[1734706388367,20.0,187.59,187.42,13.3384]
[1734706388550,20.12549,187.58,187.41,6.656]
[1734706388749,20.0,187.54,187.41,6.656]
[1734706389350,20.0,187.54,187.42,0.12549]
[1734706391381,21.6554,187.54,187.37,0.12549]
[1734706391883,20.0,187.54,187.39,0.12549]
[1734706392083,20.0,187.54,187.36,6.0347]
[1734706392290,20.0,187.54,187.37,0.80004388]
[1734706392655,20.0,187.54,187.4,0.12549]
[1734706393383,20.0,187.54,187.4,13.46539]
[1734706393961,20.0,187.54,187.42,0.12549]
[1734706394370,6.3774,187.57,187.42,0.12549]
[1734706394677,13.3228,187.65,187.42,0.12549]
[1734706394678,6.2803,187.62,187.47,1.5779]
[1734706394878,18.66666915,187.64,187.48,0.92523907]
[1734706395183,0.6733706,187.64,187.48,20.92523907]
[1734706395387,0.6733706,187.64,187.5,0.12549]
[1734706396491,0.6733706,187.64,187.48,0.79974907]
[1734706396793,0.6733706,187.64,187.49,13.334]
[1734706397177,0.6733706,187.64,187.5,0.12549]
[1734706397691,20.6733706,187.64,187.5,0.12549]
[1734706398072,0.6733706,187.64,187.5,0.12549]
[1734706398391,0.6733706,187.64,187.52,0.12549]
[1734706399499,0.6733706,187.64,187.54,0.12549]
[1734706400066,0.6733706,187.64,187.56,0.12549]
[1734706400295,0.6733706,187.64,187.58,0.12549]
[1734706400890,0.6733706,187.64,187.57,6.1907]
[1734706401800,0.6733706,187.64,187.52,6.1907]
[1734706402202,0.6733706,187.64,187.53,0.12549]
[1734706405000,0.6733706,187.64,187.53,13.45599]
[1734706405370,0.6733706,187.64,187.55,0.12549]
[1734706405571,0.6733706,187.64,187.54,0.7994769]
[1734706405572,0.6733706,187.64,187.57,1.64579]
[1734706405783,0.6733706,187.64,187.59,0.12549]
[1734706406003,0.6733706,187.64,187.61,0.12549]
[1734706406908,0.6733706,187.64,187.63,0.12549]
[1734706407099,7.06e-05,187.64,187.63,6.13909]
[1734706409911,7.06e-05,187.64,187.63,0.12549]
[1734706411733,7.06e-05,187.64,187.54,6.4917]
[1734706411928,7.06e-05,187.64,187.55,0.12549]
[1734706412390,7.06e-05,187.64,187.54,6.4917]
[1734706412819,7.06e-05,187.64,187.56,13.329]
[1734706413020,7.06e-05,187.64,187.58,0.12549]
[1734706413225,7.06e-05,187.64,187.57,0.79930208]
[1734706413524,7.06e-05,187.64,187.58,0.12549]
[1734706413708,7.06e-05,187.64,187.6,0.12549]
[1734706413914,7.06e-05,187.64,187.62,0.12549]
[1734706414735,7.06e-05,187.64,187.63,0.12549]
[1734706415105,7.06e-05,187.64,187.63,21.55429]
[1734706415727,6.4613,187.82,187.67,0.12549]
[1734706415936,1.5592,187.84,187.7,20.0]
[1734706416096,21.63366517,187.85,187.71,0.79864384]
[1734706416292,21.63366517,187.85,187.72,0.12549]
[1734706416507,6.4613,187.88,187.74,0.12549]
[1734706416752,6.4613,187.88,187.76,0.12549]
[1734706417731,6.4613,187.88,187.71,13.3179]
[1734706417937,20.0,187.85,187.71,13.3179]
[1734706418234,20.0,187.85,187.63,61.401]
[1734706418427,6.27755776,187.82,187.64,0.79877524]
[1734706418642,20.0,187.79,187.64,14.12207524]
[1734706419607,20.0,187.81,187.66,13.3219]
[1734706419810,20.0,187.81,187.67,0.79876734]
[1734706420411,20.0,187.81,187.68,0.12549]
[1734706420640,20.0,187.81,187.7,0.12549]
[1734706420934,20.0,187.81,187.71,13.3184]
[1734706421350,20.0,187.8,187.66,0.79876355]
[1734706421640,26.27755776,187.81,187.64,14.12197632]
[1734706421819,1.5938,187.8,187.64,13.323]
[1734706422022,20.0,187.77,187.64,13.323]
[1734706423539,20.0,187.77,187.65,0.12549]
[1734706424548,6.4542,187.76,187.61,13.3254]
[1734706424856,20.0,187.73,187.63,0.12549]
[1734706425162,20.0,187.73,187.65,0.12549]
[1734706425646,20.0,187.73,187.62,0.79902865]
[1734706426208,20.0,187.73,187.61,13.3254]
[1734706427034,20.0,187.73,187.62,0.79918437]
[1734706428014,20.0,187.73,187.63,13.44949]
[1734706431043,20.0,187.73,187.6,13.3262]
[1734706431352,20.0,187.73,187.61,0.79921536]
[1734706431646,20.0,187.73,187.62,0.12549]
[1734706431843,7.87135776,187.8,187.62,0.12549]
[1734706432038,7.6576,187.8,187.64,0.12549]
[1734706432361,7.6576,187.8,187.66,0.12549]
[1734706433150,7.6576,187.8,187.68,0.12549]
[1734706433461,6.27755776,187.8,187.69,22.1398]
[1734706433648,1.5308,187.86,187.73,0.12549]
[1734706433944,1.5308,187.86,187.73,0.92408767]
[1734706434524,1.5308,187.86,187.71,13.3183]
[1734706434929,1.5308,187.86,187.72,0.12549]
[1734706435225,6.486,187.9,187.75,0.12549]
[1734706435733,6.486,187.9,187.71,13.3183]
[1734706435933,6.486,187.9,187.72,0.12549]
[1734706436952,20.0,187.87,187.71,13.3183]
[1734706437156,1.6176,187.82,187.71,13.3183]
[1734706437944,20.0,187.78,187.67,13.3208]
[1734706438454,20.0,187.78,187.68,0.12549]
[1734706438626,20.0,187.78,187.7,0.12549]
[1734706439150,20.0,187.84,187.72,0.12549]
[1734706440026,20.0,187.84,187.7,0.12549]
[1734706440230,20.0,187.84,187.72,0.12549]
[1734706440545,20.0,187.84,187.71,13.3184]
[1734706441324,6.0802,187.87,187.72,0.12549]
[1734706441521,6.0802,187.87,187.72,0.9243204]
[1734706442354,6.0802,187.87,187.73,13.3169]
[1734706442854,6.0802,187.87,187.74,6.44319]
[1734706443156,1.5783,187.88,187.74,7.24189718]
[1734706443730,6.4022,187.92,187.74,7.24189718]
[1734706444246,6.4022,187.92,187.76,0.12549]
[1734706444564,6.4022,187.92,187.76,0.9238763]
[1734706445668,6.4022,187.92,187.78,0.12549]
[1734706446331,20.0,187.89,187.78,0.12549]
[1734706446735,20.0,187.89,187.8,0.12549]
[1734706447363,6.4022,187.92,187.8,0.92386899]
[1734706447545,6.4022,187.92,187.8,0.79837899]
[1734706447740,6.4022,187.92,187.77,13.3141]
[1734706448571,20.0,187.89,187.78,0.12549]
[1734706449635,20.0,187.89,187.69,6.5164]
[1734706449853,33.3069,187.88,187.69,19.8356]
[1734706450054,20.0,187.79,187.64,6.5164]
[1734706450257,20.0,187.79,187.59,30.8283469]
[1734706450464,20.0,187.79,187.6,0.79911696]
[1734706451467,20.0,187.79,187.63,0.12549]
[1734706451676,0.12549,187.78,187.62,13.3247]
[1734706451833,0.12549,187.78,187.58,13.3269]
[1734706452170,0.12549,187.78,187.56,0.79924489]
[1734706452171,0.12549,187.74,187.56,0.79924489]
[1734706452467,21.5415,187.7,187.55,0.12549]
[1734706452656,21.5415,187.7,187.54,20.14930779]
[1734706453234,0.12549,187.69,187.54,19.3499]
[1734706453877,0.12549,187.69,187.5,14.1324184]
[1734706454035,0.12549,187.67,187.48,6.5223]
[1734706454236,20.0,187.63,187.46,13.3356]
[1734706454541,20.0,187.63,187.47,0.12549]
[1734706454770,20.0,187.63,187.47,0.79978971]
[1734706455566,20.0,187.63,187.48,13.46019]
[1734706455752,20.0,187.63,187.48,13.3347]
[1734706455951,0.12549,187.62,187.44,13.337]
[1734706456151,0.12549,187.62,187.45,0.12549]
[1734706456673,0.12549,187.62,187.44,13.337]
[1734706457051,0.12549,187.62,187.45,0.79987807]
[1734706457766,19.3244,187.66,187.48,0.12549]
[1734706457767,6.002,187.66,187.48,0.12549]
[1734706458068,6.002,187.66,187.48,0.9251614]
[1734706458971,6.002,187.66,187.49,13.334]
[1734706459169,0.12549,187.65,187.45,13.3365]
[1734706459383,0.12549,187.62,187.45,13.3365]
[1734706459749,20.12549,187.62,187.44,0.79974723]
[1734706460646,20.12549,187.62,187.45,0.12549]
[1734706461672,33.45049,187.62,187.43,6.5223]
[1734706462037,0.12549,187.6,187.44,0.12549]
[1734706463540,0.12549,187.6,187.43,6.5223]
[1734706463843,0.12549,187.55,187.38,6.2229]
[1734706464779,0.12549,187.5,187.36,0.80017224]
[1734706465074,0.12549,187.48,187.32,6.2229]
[1734706465285,20.0,187.46,187.32,6.2229]
[1734706465451,20.0,187.45,187.33,0.12549]
[1734706465650,20.0,187.45,187.32,7.02325131]
[1734706465978,20.0,187.45,187.32,6.2229]
[1734706466753,20.0,187.45,187.29,14.14839176]
[1734706466951,20.0,187.45,187.28,1.559]
[1734706467153,26.01038906,187.45,187.28,1.559]
[1734706467464,26.01038906,187.45,187.29,0.12549]
[1734706467850,26.01038906,187.45,187.31,0.12549]
[1734706468170,20.0,187.45,187.31,0.12549]
[1734706469685,0.12549,187.44,187.28,1.559]
[1734706469851,20.0,187.4,187.27,6.2092]
[1734706470592,21.6388,187.4,187.23,15.71658442]
[1734706470956,21.6388,187.4,187.23,14.15298442]
[1734706471361,27.64918906,187.4,187.23,14.15298442]
[1734706472088,6.0247,187.43,187.28,24.6009469]
[1734706472287,1.6388,187.45,187.31,0.12549]
[1734706472590,1.6388,187.45,187.31,0.92583415]
[1734706473261,1.6388,187.45,187.31,0.12549]
[1734706473471,20.0,187.44,187.31,0.12549]
[1734706473685,20.0,187.42,187.3,6.199]
[1734706474194,20.0,187.44,187.3,6.199]
[1734706474364,20.0,187.44,187.25,19.9871]
[1734706474767,20.0,187.44,187.27,0.12549]
[1734706475363,20.0,187.44,187.28,13.3489]
[1734706475563,20.0,187.44,187.29,0.12549]
[1734706475770,1.6388,187.45,187.29,0.92611484]
[1734706476159,1.6388,187.45,187.29,0.12549]
[1734706476499,0.12549,187.44,187.25,6.636]
[1734706476862,0.12549,187.44,187.25,7.43670695]
[1734706477177,20.0,187.42,187.26,0.12549]
[1734706477379,20.0,187.42,187.25,7.43670695]
[1734706478099,0.12549,187.41,187.25,0.80070695]
[1734706478303,0.12549,187.41,187.2,51.3096469]
[1734706478304,20.0,187.37,187.21,0.80071221]
[1734706478499,20.0,187.37,187.2,13.3543]
[1734706478500,1.5113,187.36,187.2,13.3543]
[1734706478688,20.0,187.33,187.17,20.2758706]
[1734706478886,0.12549,187.32,187.17,20.2758706]
[1734706479198,20.0,187.28,187.18,0.12549]
[1734706479374,20.0,187.28,187.19,0.80105623]
[1734706479574,20.0,187.33,187.2,0.12549]
[1734706479788,20.0,187.33,187.22,0.12549]
[1734706480190,20.0,187.33,187.24,0.12549]
[1734706481017,20.0,187.33,187.23,13.3521]
[1734706481680,20.0,187.33,187.24,0.12549]
[1734706482107,20.0,187.33,187.26,0.12549]
[1734706482488,13.337,187.45,187.26,0.12549]
[1734706482489,7.8793,187.42,187.27,0.8006966]
[1734706482694,7.8793,187.42,187.28,6.41969]
[1734706483117,14.59137145,187.42,187.28,6.41969]
[1734706484186,20.0,187.39,187.28,6.41969]
[1734706484801,20.0,187.39,187.27,0.12549]
[1734706486710,26.71207145,187.39,187.24,19.8714]
[1734706487106,0.12549,187.38,187.24,6.5196]
[1734706487321,0.12549,187.38,187.21,1.5422]
[1734706487322,20.0,187.35,187.21,14.8961]
[1734706487619,26.71207145,187.35,187.21,14.8961]
[1734706489008,20.0,187.35,187.24,0.12549]
[1734706489212,20.0,187.35,187.24,0.92625805]
[1734706490103,20.0,187.35,187.23,13.3525]
[1734706490613,20.0,187.35,187.24,0.12549]
[1734706491714,20.0,187.35,187.25,13.3511]
[1734706491905,6.71207145,187.4,187.26,0.12549]
[1734706492210,6.71207145,187.4,187.28,0.12549]
[1734706493013,6.71207145,187.4,187.25,13.3511]
[1734706493523,20.0,187.37,187.26,0.12549]
[1734706493818,20.0,187.37,187.24,14.15225045]
[1734706493987,7.8793,187.42,187.24,13.3516]
[1734706493988,20.0,187.35,187.24,13.3516]
[1734706494189,20.0,187.33,187.24,13.3516]
[1734706494692,20.0,187.32,187.24,13.3516]
[1734706496415,20.0,187.32,187.26,13.3504]
[1734706496618,7.8793,187.42,187.27,0.12549]
[1734706496862,14.59137145,187.42,187.27,0.12549]
[1734706497112,6.71207145,187.41,187.27,0.12549]
[1734706498017,20.0,187.38,187.29,0.12549]
[1734706498419,20.0,187.38,187.29,7.406448]
[1734706498725,13.31177145,187.46,187.29,7.406448]
[1734706499327,19.97940843,187.46,187.3,0.12549]
[1734706499511,19.97940843,187.46,187.32,0.12549]
[1734706499829,20.0,187.43,187.32,0.12549]
[1734706500003,26.71207145,187.43,187.31,13.3468]
[1734706500198,20.0,187.4,187.32,0.12549]
[1734706501432,6.2511,187.5,187.32,25.52691679]
[1734706501606,7.7537,187.54,187.39,6.22859]
[1734706501802,6.4119,187.58,187.43,0.12549]
[1734706502010,13.3468,187.61,187.45,0.12549]
[1734706502202,13.3468,187.61,187.45,0.92543844]
[1734706502428,7.9678,187.64,187.47,0.12549]
[1734706502640,14.67987145,187.64,187.49,0.12549]
[1734706502818,16.24639864,187.69,187.53,0.12549]
[1734706503020,16.24639864,187.69,187.55,0.12549]
[1734706503223,16.24639864,187.69,187.55,0.92496205]
[1734706503224,9.68479864,187.69,187.55,0.92496205]
[1734706503426,6.66763698,187.7,187.57,0.12549]
[1734706503625,6.66763698,187.7,187.59,0.12549]
[1734706503855,14.31942612,187.79,187.61,0.12549]
[1734706504058,14.8811631,187.79,187.65,0.12549]
[1734706504388,14.8811631,187.79,187.65,0.92449647]
[1734706504389,6.71207145,187.78,187.65,0.92449647]
[1734706504757,13.37970843,187.78,187.59,0.79903749]
[1734706504918,6.66763698,187.77,187.64,0.12549]
[1734706505114,6.71207145,187.78,187.64,0.12549]
[1734706505317,6.71207145,187.78,187.68,0.12549]
[1734706505943,6.71207145,187.82,187.68,0.12549]
[1734706506438,6.71207145,187.82,187.7,0.12549]
[1734706507240,0.6733706,187.83,187.7,0.92430824]
[1734706507455,0.6733706,187.83,187.74,0.12549]
[1734706507743,0.6733706,187.83,187.76,0.12549]
[1734706508042,0.6733706,187.83,187.76,13.43989]
[1734706508246,0.6733706,187.83,187.76,53.38903464]
[1734706508660,0.6733706,187.83,187.76,13.43989]
[1734706508824,0.6733706,187.83,187.76,53.38903464]
[1734706510551,0.6733706,187.83,187.78,13.43889]
[1734706510723,0.6733706,187.83,187.8,0.12549]
[1734706511032,0.6733706,187.83,187.82,0.12549]
[1734706511240,7.06e-05,187.83,187.82,20.12549]
[1734706511879,1.6393,188.01,187.82,20.12549]
[1734706511880,8.35137145,188.01,187.82,60.07463464]
[1734706512053,6.71207145,188.0,187.83,20.0]
[1734706512227,6.71207145,188.0,187.87,0.12549]
[1734706512556,0.6733706,188.02,187.89,0.12549]
[1734706513250,0.6733706,188.02,187.9,39.94914464]
[1734706513425,0.6733706,188.02,187.93,0.12549]
[1734706513631,0.6733706,188.02,187.95,0.12549]
[1734706514031,0.6733706,188.02,187.93,20.0]
[1734706514452,0.6733706,188.02,187.94,40.07463464]
[1734706514649,0.6733706,188.02,187.96,40.07463464]
[1734706514958,0.6733706,188.02,187.99,6.46179]
[1734706515158,7.06e-05,188.02,187.99,7.2592209]
[1734706515356,7.06e-05,188.02,188.01,0.12549]
[1734706515661,6.8325706,188.21,188.04,0.12549]
[1734706515876,6.8325706,188.21,188.04,0.92273756]
[1734706516043,0.6733706,188.21,188.06,0.12549]
[1734706516244,0.6733706,188.21,188.06,14.09004328]
[1734706516462,7.38544205,188.21,188.06,14.09004328]
[1734706516774,7.38544205,188.21,188.06,13.2929]
[1734706516957,7.38544205,188.21,188.04,20.0]
[1734706517163,0.12549,188.19,187.99,46.28544464]
[1734706517465,13.37970843,188.18,188.0,0.12549]
[1734706517666,0.12549,188.14,187.99,6.3363]
[1734706517870,20.0,188.11,187.97,1.5738]
[1734706518055,20.0,188.1,187.97,1.5738]
[1734706518451,20.0,188.1,187.94,14.09943306]
[1734706518650,0.12549,188.09,187.92,6.125]
[1734706519685,6.71207145,188.13,187.97,39.94914464]
[1734706519971,13.37970843,188.2,188.01,0.12549]
[1734706520272,0.12549,188.19,187.98,39.94914464]
[1734706520451,13.50519843,188.19,187.98,39.94914464]
[1734706520652,0.12549,188.17,188.0,20.0]
[1734706520872,20.0,188.15,188.0,20.0]
[1734706521078,13.50519843,188.16,188.0,20.0]
[1734706521263,13.37970843,188.16,188.01,0.12549]
[1734706521446,6.71207145,188.16,188.03,20.0]
[1734706521770,6.66763698,188.2,188.04,0.12549]
[1734706522271,7.1790706,188.21,188.06,0.12549]
[1734706522843,7.1790706,188.21,188.05,13.2943]
[1734706523051,0.12549,188.2,188.05,13.2943]
[1734706523267,20.55877903,188.21,188.06,0.12549]
[1734706523463,0.6733706,188.21,188.1,0.12549]
[1734706523676,0.6733706,188.21,188.11,20.0]
[1734706523878,0.6733706,188.21,188.12,0.12549]
[1734706524402,0.6733706,188.21,188.13,13.2886]
[1734706524574,0.6733706,188.21,188.13,14.08558967]
[1734706524779,0.6733706,188.21,188.14,0.12549]
[1734706524987,0.6733706,188.21,188.13,13.2886]
[1734706525291,0.6733706,188.21,188.14,0.12549]
[1734706525473,0.6733706,188.21,188.13,13.2886]
[1734706525883,13.083771,188.38,188.2,39.94914464]
[1734706526099,0.6733706,188.4,188.29,39.94914464]
[1734706526296,0.6733706,188.4,188.33,39.94914464]
[1734706526462,0.6733706,188.4,188.35,39.94914464]
[1734706527074,0.6733706,188.4,188.36,0.12549]
[1734706527365,0.6733706,188.4,188.32,7.45527641]
[1734706527366,7.06e-05,188.4,188.39,40.07463464]
[1734706527678,7.06e-05,188.4,188.39,40.87034793]
[1734706527871,7.06e-05,188.4,188.39,39.94914464]
[1734706528379,7.06e-05,188.4,188.39,40.7449196]
[1734706529177,7.06e-05,188.4,188.39,40.8704096]
[1734706529694,7.06e-05,188.4,188.35,39.94914464]
[1734706530698,7.06e-05,188.4,188.31,39.94914464]
[1734706530892,7.06e-05,188.4,188.27,39.94914464]
[1734706531090,7.06e-05,188.4,188.25,46.23034464]
[1734706531402,7.06e-05,188.4,188.31,39.94914464]
[1734706531604,7.06e-05,188.4,188.34,0.12549]
[1734706532201,7.06e-05,188.4,188.31,53.22444464]
[1734706532409,7.06e-05,188.4,188.33,39.94914464]
[1734706533400,7.06e-05,188.4,188.29,40.74525793]
[1734706533695,7.06e-05,188.4,188.29,60.74525793]
[1734706533902,7.06e-05,188.4,188.31,39.94914464]
[1734706534297,7.06e-05,188.4,188.29,80.74525793]
[1734706534480,7.06e-05,188.4,188.33,39.94914464]
[1734706534683,7.06e-05,188.4,188.33,40.7452111]
[1734706535090,7.06e-05,188.4,188.38,0.12549]
[1734706535405,7.06e-05,188.4,188.39,40.07463464]
[1734706536186,7.06e-05,188.4,188.37,39.94914464]
[1734706536402,7.06e-05,188.4,188.37,0.12549]
[1734706536976,7.06e-05,188.4,188.33,39.94914464]
[1734706537395,7.06e-05,188.4,188.35,39.94914464]
[1734706537593,7.06e-05,188.4,188.37,39.94914464]
[1734706538506,7.06e-05,188.4,188.39,39.94914464]
[1734706538714,7.06e-05,188.4,188.39,40.07463464]
[1734706538906,0.6733706,188.59,188.39,40.07463464]
[1734706538907,0.6733706,188.59,188.48,39.94914464]
[1734706539214,0.6733706,188.59,188.49,0.12549]
[1734706540582,0.6733706,188.59,188.48,39.94914464]
[1734706541211,0.6733706,188.59,188.47,13.2643]
[1734706541414,0.6733706,188.59,188.51,39.94914464]
[1734706541585,0.6733706,188.59,188.49,39.94914464]
[1734706542011,0.6733706,188.59,188.5,0.12549]
[1734706542421,0.6733706,188.59,188.49,39.94914464]
[1734706543018,0.6733706,188.59,188.51,39.94914464]
[1734706543311,0.6733706,188.59,188.54,0.12549]
[1734706544098,0.6733706,188.59,188.51,39.94914464]
[1734706544301,0.6733706,188.59,188.5,13.2625]
[1734706544534,0.6733706,188.59,188.55,39.94914464]
[1734706544689,0.6733706,188.59,188.54,0.12549]
[1734706544892,0.6733706,188.59,188.5,13.2625]
[1734706545215,0.6733706,188.59,188.51,0.12549]
[1734706545397,0.6733706,188.59,188.55,39.94914464]
[1734706545912,0.6733706,188.59,188.56,0.12549]
[1734706546122,0.6733706,188.59,188.55,39.94914464]
[1734706546316,0.6733706,188.59,188.52,7.35647613]
[1734706546317,0.6733706,188.59,188.51,39.94914464]
[1734706546821,0.6733706,188.59,188.49,39.94914464]
[1734706546990,0.6733706,188.59,188.46,13.2647]
[1734706547512,0.6733706,188.59,188.47,39.94914464]
[1734706548028,0.6733706,188.59,188.47,40.74464966]
[1734706548715,0.6733706,188.59,188.37,39.94914464]
[1734706548716,20.0,188.58,188.42,13.2675]
[1734706549208,20.0,188.58,188.41,40.74482625]
[1734706549720,20.0,188.58,188.44,0.12549]
[1734706549928,20.0,188.58,188.48,0.12549]
[1734706550129,0.6733706,188.59,188.52,0.12549]
[1734706550612,0.6733706,188.59,188.51,39.94914464]
[1734706550809,0.6733706,188.59,188.5,13.2622]
[1734706551124,0.6733706,188.59,188.49,39.94914464]
[1734706551495,0.6733706,188.59,188.5,0.12549]
[1734706552195,0.6733706,188.59,188.49,39.94914464]
[1734706552611,0.12549,188.64,188.45,39.94914464]
[1734706552823,7.9988606,188.65,188.45,39.94914464]
[1734706553015,13.2506,188.67,188.45,39.94914464]
[1734706553629,13.2506,188.67,188.48,0.12549]
[1734706554201,13.2506,188.67,188.47,0.12549]
[1734706554727,13.2506,188.67,188.47,40.07463464]
[1734706554932,20.0,188.64,188.47,39.94914464]
[1734706555125,20.0,188.65,188.5,0.12549]
[1734706555910,20.0,188.65,188.52,0.12549]
[1734706556599,20.0,188.65,188.51,13.2617]
[1734706556940,6.119,188.68,188.55,0.12549]
[1734706557231,6.119,188.68,188.57,0.12549]
[1734706558029,1.6109,188.7,188.57,0.92061864]
[1734706558823,0.6733706,188.78,188.64,0.12549]
[1734706559307,6.2488,188.77,188.61,39.94914464]
[1734706559510,6.2488,188.77,188.59,41.50434464]
[1734706559710,0.12549,188.76,188.59,41.50434464]
[1734706559910,0.12549,188.76,188.6,0.12549]
[1734706560639,0.12549,188.76,188.59,42.29931894]
[1734706560848,0.12549,188.76,188.59,0.7949743]
[1734706561139,20.0,188.72,188.55,53.20814464]
[1734706561442,20.0,188.74,188.57,39.94914464]
[1734706561944,20.0,188.74,188.58,0.12549]
[1734706562242,20.0,188.74,188.6,0.12549]
[1734706562419,20.0,188.74,188.6,0.92041076]
[1734706562618,20.0,188.74,188.62,0.12549]
[1734706562813,6.2488,188.77,188.62,0.12549]
[1734706563046,6.2488,188.77,188.62,13.37929]
[1734706563738,6.2488,188.77,188.59,53.20524464]
[1734706563946,0.12549,188.76,188.57,39.94914464]
[1734706564258,0.12549,188.73,188.56,13.2582]
[1734706564426,20.12549,188.73,188.56,0.79518382]
[1734706564622,20.0,188.73,188.57,39.94914464]
[1734706565143,6.2488,188.77,188.6,0.12549]
[1734706565639,0.12549,188.76,188.6,0.12549]
[1734706565820,0.12549,188.76,188.59,40.07463464]
[1734706566624,20.0,188.74,188.59,40.07463464]
[1734706567126,0.6733706,188.78,188.61,40.07463464]
[1734706567317,0.6733706,188.78,188.66,0.12549]